fUST/lending_fUST_20250222
["ID","MTS","AMOUNT","RATE_DAILY","PERIOD"]
[354052123,1740208241383,-500.0,0.00014063,2]
[354052124,1740208241392,-500.0,0.00014063,2]
[354052125,1740208241402,-500.0,0.00014063,2]
[354052126,1740208241410,-500.0,0.00014063,2]
[354052127,1740208241420,-500.0,0.00014063,2]
[354052128,1740208241429,-500.0,0.00014063,2]
[354052129,1740208241439,-500.0,0.00014063,2]
[354052130,1740208241449,-500.0,0.00014063,2]
[354052131,1740208241458,-500.0,0.00014063,2]
[354052132,1740208241468,-548.98,0.00014063,2]
[354052133,1740208241477,-4857.36,0.00014063,2]
[354052134,1740208241487,-500.0,0.00014063,2]
[354052135,1740208241496,-2326.9,0.00014063,2]
[354052136,1740208241505,-500.0,0.00014063,2]
[354052137,1740208241514,-500.0,0.00014063,2]
[354052138,1740208241523,-500.0,0.00014063,2]
[354052139,1740208241533,-500.0,0.00014063,2]
[354052140,1740208241542,-500.0,0.00014063,2]
[354052141,1740208241551,-500.0,0.00014063,2]
[354052142,1740208241561,-500.0,0.00014063,2]
[354052143,1740208241570,-500.0,0.00014063,2]
[354052144,1740208241579,-616.41,0.00014063,2]
[354052145,1740208241589,-500.0,0.00014063,2]
[354052146,1740208241598,-481.26120154,0.00014063,2]
[354052147,1740208241608,-2755.29,0.00014063,2]
[354052148,1740208241617,-500.0,0.00014063,2]
[354052149,1740208241626,-500.0,0.00014063,2]
[354052150,1740208241636,-500.0,0.00014063,2]
[354052151,1740208241646,-151.0,0.000141,2]
[354052152,1740208241655,-151.0,0.000141,2]
[354052153,1740208241664,-500.0,0.00014108,2]
[354052154,1740208241673,-500.0,0.00014108,2]
[354052155,1740208241683,-500.0,0.00014108,2]
[354052156,1740208241692,-500.0,0.00014108,2]
[354052157,1740208241702,-213.14517632,0.00014108,2]
[354052158,1740208241711,-265.15,0.00014108,2]
[354052159,1740208241720,-500.0,0.00014109,2]
[354052160,1740208241732,-1338.82,0.00014144,2]
[354052161,1740208241742,-739.71,0.00014144,2]
[354052162,1740208241751,-500.0,0.00014144,2]
[354052163,1740208241761,-500.0,0.00014144,2]
[354052164,1740208241771,-500.0,0.00014144,2]
[354052165,1740208241780,-500.0,0.00014144,2]
[354052166,1740208241789,-500.0,0.00014144,2]
[354052167,1740208241799,-500.0,0.00014144,2]
[354052168,1740208241808,-600.9,0.00014144,2]
[354052169,1740208241819,-1058.86,0.00014144,2]
[354052170,1740208241829,-744.55,0.00014144,2]
[354052171,1740208241838,-697.64,0.00014144,2]
[354052172,1740208241847,-500.0,0.00014144,2]
[354052173,1740208241857,-500.0,0.00014144,2]
[354052174,1740208241866,-500.0,0.00014144,2]
[354052175,1740208241874,-500.0,0.00014144,2]
[354052176,1740208241883,-500.0,0.00014144,2]
[354052177,1740208241892,-500.0,0.00014144,2]
[354052178,1740208241902,-500.0,0.00014144,2]
[354052179,1740208241911,-500.0,0.00014144,2]
[354052180,1740208241921,-500.0,0.00014144,2]
[354052181,1740208241930,-556.77,0.00014144,2]
[354052182,1740208241939,-553.37,0.00014144,2]
[354052183,1740208241948,-500.0,0.00014145,2]
[354052184,1740208241957,-500.0,0.00014145,2]
[354052185,1740208241966,-500.0,0.00014145,2]
[354052186,1740208241975,-500.0,0.00014145,2]
[354052187,1740208241985,-500.0,0.00014145,2]
[354052188,1740208241994,-263.04,0.00014145,2]
[354052189,1740208242003,-504.65686915,0.00014145,2]
[354052190,1740208242013,-500.0,0.00014145,2]
[354052191,1740208242023,-4857.36,0.00014145,2]
[354052192,1740208242032,-500.0,0.00014145,2]
[354052193,1740208242042,-2326.9,0.00014145,2]
[354052194,1740208242051,-500.0,0.00014145,2]
[354052195,1740208242061,-550.07,0.00014145,2]
[354052196,1740208242070,-241.88,0.00014145,2]
[354052197,1740208242160,-500.0,0.00014145,2]
[354052198,1740208242170,-500.0,0.00014145,2]
[354052199,1740208242179,-500.0,0.00014145,2]
[354052200,1740208242189,-500.0,0.00014145,2]
[354052201,1740208242198,-616.41,0.00014145,2]
[354052202,1740208242207,-2755.29,0.00014145,2]
[354052203,1740208242217,-500.0,0.00014145,2]
[354052204,1740208242226,-500.0,0.00014145,2]
[354052205,1740208242236,-500.0,0.00014145,2]
[354052206,1740208242246,-420.0,0.00014145,2]
[354052207,1740208242255,-453.6494338,0.00014167,2]
[354052208,1740208242265,-500.0,0.00014191,2]
[354052209,1740208242274,-151.0,0.000142,2]
[354052210,1740208242284,-151.0,0.000142,2]
[354052211,1740208242293,-1338.82,0.00014226,2]
[354052212,1740208242303,-739.71,0.00014226,2]
[354052213,1740208242312,-500.0,0.00014226,2]
[354052214,1740208242323,-500.0,0.00014226,2]
[354052215,1740208242333,-500.0,0.00014226,2]
[354052216,1740208242342,-500.0,0.00014226,2]
[354052217,1740208242351,-500.0,0.00014226,2]
[354052218,1740208242361,-565.28,0.00014226,2]
[354052219,1740208242370,-600.9,0.00014226,2]
[354052220,1740208242379,-1058.86,0.00014226,2]
[354052221,1740208242389,-744.55,0.00014226,2]
[354052222,1740208242398,-697.64,0.00014226,2]
[354052223,1740208242408,-328.06384719,0.00014226,2]
[354052224,1740208242417,-500.0,0.00014226,2]
[354052225,1740208242427,-500.0,0.00014226,2]
[354052226,1740208242436,-500.0,0.00014226,2]
[354052227,1740208242445,-500.0,0.00014226,2]
[354052228,1740208242455,-500.0,0.00014226,2]
[354052229,1740208242465,-500.0,0.00014226,2]
[354052230,1740208242474,-500.0,0.00014226,2]
[354052231,1740208242483,-556.77,0.00014226,2]
[354052232,1740208242493,-553.37,0.00014226,2]
[354052233,1740208242502,-500.0,0.00014227,2]
[354052234,1740208242511,-500.0,0.00014227,2]
[354052235,1740208242521,-500.0,0.00014227,2]
[354052236,1740208242530,-500.0,0.00014227,2]
[354052237,1740208242539,-500.0,0.00014227,2]
[354052238,1740208242549,-4857.36,0.00014227,2]
[354052239,1740208242558,-500.0,0.00014227,2]
[354052240,1740208242568,-2326.9,0.00014227,2]
[354052241,1740208242578,-500.0,0.00014227,2]
[354052242,1740208242588,-500.0,0.00014227,2]
[354052243,1740208242598,-500.0,0.00014227,2]
[354052244,1740208242607,-500.0,0.00014227,2]
[354052245,1740208242616,-616.41,0.00014227,2]
[354052246,1740208242626,-2755.29,0.00014227,2]
[354052247,1740208242635,-412.42403592,0.00014227,2]
[354052248,1740208242645,-500.0,0.00014227,2]
[354052249,1740208242654,-500.0,0.00014227,2]
[354052250,1740208242663,-500.0,0.00014273,2]
[354052251,1740208242673,-453.6494338,0.0001429,2]
[354052252,1740208242682,-151.0,0.000143,2]
[354052253,1740208242692,-151.0,0.000143,2]
[354052254,1740208242702,-151.0,0.000143,2]
[354052255,1740208242712,-151.0,0.000143,2]
[354052256,1740208242722,-1338.82,0.00014308,2]
[354052257,1740208242733,-739.71,0.00014308,2]
[354052258,1740208242742,-500.0,0.00014308,2]
[354052259,1740208242752,-500.0,0.00014308,2]
[354052260,1740208242762,-500.0,0.00014308,2]
[354052261,1740208242772,-500.0,0.00014308,2]
[354052262,1740208242782,-500.0,0.00014308,2]
[354052263,1740208242791,-600.9,0.00014308,2]
[354052264,1740208242801,-1058.86,0.00014308,2]
[354052265,1740208242812,-744.55,0.00014308,2]
[354052266,1740208242823,-697.64,0.00014308,2]
[354052267,1740208242833,-500.0,0.00014308,2]
[354052268,1740208242842,-500.0,0.00014308,2]
[354052269,1740208242851,-500.0,0.00014308,2]
[354052270,1740208242860,-500.0,0.00014308,2]
[354052271,1740208242870,-500.0,0.00014308,2]
[354052272,1740208242879,-500.0,0.00014308,2]
[354052273,1740208242888,-500.0,0.00014308,2]
[354052274,1740208242898,-556.77,0.00014308,2]
[354052275,1740208242907,-553.37,0.00014308,2]
[354052276,1740208242917,-576.64,0.00014309,2]
[354052277,1740208242926,-500.0,0.00014309,2]
[354052278,1740208242935,-500.0,0.00014309,2]
[354052279,1740208242945,-500.0,0.00014309,2]
[354052280,1740208242954,-500.0,0.00014309,2]
[354052281,1740208242963,-4857.36,0.00014309,2]
[354052282,1740208242972,-555.27669567,0.00014309,2]
[354052283,1740208242981,-2326.9,0.00014309,2]
[354052284,1740208242990,-500.0,0.00014309,2]
[354052285,1740208243000,-500.0,0.00014309,2]
[354052287,1740208243010,-500.0,0.00014309,2]
[354052289,1740208243019,-500.0,0.00014309,2]
[354052291,1740208243030,-616.41,0.00014309,2]
[354052293,1740208243039,-2755.29,0.00014309,2]
[354052295,1740208243049,-500.0,0.00014309,2]
[354052297,1740208243059,-500.0,0.00014309,2]
[354052300,1740208243069,-500.0,0.00014355,2]
[354052302,1740208243078,-1338.82,0.0001439,2]
[354052303,1740208243087,-739.71,0.0001439,2]
[354052304,1740208243096,-500.0,0.0001439,2]
[354052305,1740208243105,-500.0,0.0001439,2]
[354052306,1740208243115,-500.0,0.0001439,2]
[354052307,1740208243125,-500.0,0.0001439,2]
[354052308,1740208243135,-500.0,0.0001439,2]
[354052309,1740208243144,-600.9,0.0001439,2]
[354052310,1740208243154,-1058.86,0.0001439,2]
[354052311,1740208243163,-744.55,0.0001439,2]
[354052312,1740208243172,-697.64,0.0001439,2]
[354052314,1740208243182,-500.0,0.0001439,2]
[354052315,1740208243190,-500.0,0.0001439,2]
[354052316,1740208243200,-500.0,0.0001439,2]
[354052317,1740208243209,-500.0,0.0001439,2]
[354052319,1740208243218,-500.0,0.0001439,2]
[354052320,1740208243227,-500.0,0.0001439,2]
[354052321,1740208243236,-500.0,0.0001439,2]
[354052322,1740208243245,-556.77,0.0001439,2]
[354052323,1740208243254,-553.37,0.0001439,2]
[354052324,1740208243263,-500.0,0.00014391,2]
[354052325,1740208243272,-566.31,0.00014391,2]
[354052326,1740208243282,-500.0,0.00014391,2]
[354052328,1740208243291,-166.84186817,0.00014391,2]
[354052329,1740208243301,-4857.36,0.00014391,2]
[354052331,1740208243310,-2326.9,0.00014391,2]
[354052334,1740208243321,-500.0,0.00014391,2]
[354052336,1740208243331,-500.0,0.00014391,2]
[354052338,1740208243340,-500.0,0.00014391,2]
[354052340,1740208243350,-500.0,0.00014391,2]
[354052342,1740208243359,-616.41,0.00014391,2]
[354052344,1740208243369,-2755.29,0.00014391,2]
[354052346,1740208243379,-500.0,0.00014391,2]
[354052348,1740208243389,-500.0,0.00014391,2]
[354052350,1740208243398,-151.0,0.000144,2]
[354052352,1740208243407,-151.0,0.000144,2]
[354052354,1740208243416,-151.0,0.000144,2]
[354052356,1740208243426,-150.23536786,0.00014421,2]
[354052358,1740208243435,-492.72396336,0.00014421,2]
[354052360,1740208243444,-501.94783142,0.00014421,2]
[354052362,1740208243454,-722.22217268,0.00014421,2]
[354052364,1740208243463,-1000.0,0.00014421,2]
[354052366,1740208243473,-1000.0,0.00014421,2]
[354052368,1740208243484,-500.0,0.00014437,2]
[354052370,1740208243493,-500.0,0.00014473,2]
[354052372,1740208243503,-500.0,0.00014473,2]
[354052374,1740208243513,-1338.82,0.00014473,2]
[354052376,1740208243522,-4857.36,0.00014473,2]
[354052378,1740208243531,-739.71,0.00014473,2]
[354052380,1740208243541,-500.0,0.00014473,2]
[354052382,1740208243550,-2326.9,0.00014473,2]
[354052384,1740208243559,-500.0,0.00014473,2]
[354052386,1740208243568,-500.0,0.00014473,2]
[354052388,1740208243578,-500.0,0.00014473,2]
[354052390,1740208243587,-500.0,0.00014473,2]
[354052392,1740208243597,-500.0,0.00014473,2]
[354052394,1740208243607,-500.0,0.00014473,2]
[354052396,1740208243617,-500.0,0.00014473,2]
[354052398,1740208243627,-321.43154115,0.00014473,2]
[354052400,1740208243636,-600.9,0.00014473,2]
[354052402,1740208243645,-616.41,0.00014473,2]
[354052404,1740208243655,-1058.86,0.00014473,2]
[354052406,1740208243664,-744.55,0.00014473,2]
[354052408,1740208243674,-697.64,0.00014473,2]
[354052410,1740208243685,-2755.29,0.00014473,2]
[354052412,1740208243695,-500.0,0.00014473,2]
[354052415,1740208243706,-500.0,0.00014473,2]
[354052417,1740208243715,-500.0,0.00014473,2]
[354052419,1740208243726,-500.0,0.00014473,2]
[354052421,1740208243744,-500.0,0.00014473,2]
[354052423,1740208243756,-500.0,0.00014473,2]
[354052425,1740208243766,-500.0,0.00014473,2]
[354052427,1740208243776,-500.0,0.00014473,2]
[354052429,1740208243785,-556.77,0.00014473,2]
[354052431,1740208243794,-553.37,0.00014473,2]
[354052433,1740208243803,-151.0,0.000145,2]
[354052435,1740208243813,-151.0,0.000145,2]
[354052437,1740208243822,-151.0,0.000145,2]
[354052439,1740208243832,-500.0,0.00014521,2]
[354052441,1740208243841,-1000.0,0.00014521,2]
[354052443,1740208243850,-1000.0,0.00014521,2]
[354052445,1740208243860,-1000.0,0.00014521,2]
[354052447,1740208243869,-1000.0,0.00014521,2]
[354052448,1740208243878,-1000.0,0.00014521,2]
[354052450,1740208243887,-218.47740289,0.00014521,2]
[354052452,1740208243897,-1000.0,0.00014521,2]
[354052454,1740208243906,-694.237,0.00014532,2]
[354052457,1740208243915,-172.2156146,0.00014532,2]
[354052459,1740208243925,-1338.82,0.00014555,2]
[354052460,1740208243934,-739.71,0.00014555,2]
[354052463,1740208243943,-500.0,0.00014555,2]
[354052465,1740208243954,-500.0,0.00014555,2]
[354052467,1740208243963,-500.0,0.00014555,2]
[354052469,1740208243973,-500.0,0.00014555,2]
[354052471,1740208243983,-500.0,0.00014555,2]
[354052473,1740208243992,-600.9,0.00014555,2]
[354052475,1740208244001,-1058.86,0.00014555,2]
[354052477,1740208244011,-744.55,0.00014555,2]
[354052479,1740208244020,-697.64,0.00014555,2]
[354052481,1740208244030,-500.0,0.00014555,2]
[354052483,1740208244040,-500.0,0.00014555,2]
[354052485,1740208244049,-500.0,0.00014555,2]
[354052487,1740208244058,-500.0,0.00014555,2]
[354052489,1740208244070,-500.02838636,0.00014555,2]
[354052491,1740208244080,-500.0,0.00014555,2]
[354052493,1740208244089,-500.0,0.00014555,2]
[354052502,1740208244174,-556.77,0.00014555,2]
[354052504,1740208244184,-553.37,0.00014555,2]
[354052506,1740208244193,-500.0,0.00014556,2]
[354052508,1740208244203,-4857.36,0.00014556,2]
[354052510,1740208244212,-2326.9,0.00014556,2]
[354052512,1740208244222,-500.0,0.00014556,2]
[354052514,1740208244231,-500.0,0.00014556,2]
[354052516,1740208244240,-500.0,0.00014556,2]
[354052518,1740208244250,-616.41,0.00014556,2]
[354052520,1740208244260,-2755.29,0.00014556,2]
[354052522,1740208244269,-500.0,0.00014556,2]
[354052524,1740208244279,-151.0,0.000146,2]
[354052526,1740208244289,-151.0,0.000146,2]
[354052528,1740208244299,-151.0,0.000146,2]
[354052530,1740208244308,-1338.82,0.00014637,2]
[354052532,1740208244319,-739.71,0.00014637,2]
[354052534,1740208244328,-500.0,0.00014637,2]
[354052536,1740208244338,-516.36171601,0.00014637,2]
[354052538,1740208244348,-500.0,0.00014637,2]
[354052540,1740208244358,-503.38,0.00014637,2]
[354052542,1740208244368,-500.0,0.00014637,2]
[354052544,1740208244378,-600.9,0.00014637,2]
[354052546,1740208244388,-1058.86,0.00014637,2]
[354052548,1740208244398,-744.55,0.00014637,2]
[354052550,1740208244407,-697.64,0.00014637,2]
[354052552,1740208244418,-500.0,0.00014637,2]
[354052554,1740208244427,-500.0,0.00014637,2]
[354052556,1740208244437,-500.0,0.00014637,2]
[354052559,1740208244447,-500.0,0.00014637,2]
[354052561,1740208244456,-500.0,0.00014637,2]
[354052563,1740208244465,-561.23,0.00014637,2]
[354052565,1740208244475,-556.77,0.00014637,2]
[354052567,1740208244484,-553.37,0.00014637,2]
[354052568,1740208244494,-500.0,0.00014638,2]
[354052571,1740208244503,-4857.36,0.00014638,2]
[354052573,1740208244514,-500.0,0.00014638,2]
[354052575,1740208244523,-2326.9,0.00014638,2]
[354052577,1740208244533,-500.0,0.00014638,2]
[354052579,1740208244542,-500.0,0.00014638,2]
[354052581,1740208244553,-616.41,0.00014638,2]
[354052583,1740208244563,-2755.29,0.00014638,2]
[354052585,1740208244572,-396.28560031,0.00014638,2]
[354052587,1740208244582,-151.0,0.000147,2]
[354052589,1740208244591,-50000.0,0.000147,2]
[354052591,1740208244600,-151.0,0.000147,2]
[354052593,1740208244610,-151.0,0.000147,2]
[354052595,1740208244619,-151.0,0.000147,2]
[354052597,1740208244628,-1338.82,0.00014719,2]
[354052599,1740208244638,-739.71,0.00014719,2]
[354052601,1740208244647,-500.0,0.00014719,2]
[354052603,1740208244656,-223.12,0.00014719,2]
[354052605,1740208244666,-500.0,0.00014719,2]
[354052607,1740208244675,-600.9,0.00014719,2]
[354052609,1740208244684,-1058.86,0.00014719,2]
[354052611,1740208244694,-744.55,0.00014719,2]
[354052613,1740208244703,-697.64,0.00014719,2]
[354052614,1740208244713,-500.0,0.00014719,2]
[354052615,1740208244723,-500.0,0.00014719,2]
[354052616,1740208244735,-500.0,0.00014719,2]
[354052617,1740208244745,-500.0,0.00014719,2]
[354052618,1740208244755,-500.0,0.00014719,2]
[354052619,1740208244764,-556.77,0.00014719,2]
[354052620,1740208244774,-553.37,0.00014719,2]
[354052621,1740208244784,-500.0,0.0001472,2]
[354052622,1740208244794,-4857.36,0.0001472,2]
[354052623,1740208244803,-500.0,0.0001472,2]
[354052624,1740208244814,-2326.9,0.0001472,2]
[354052625,1740208244826,-500.0,0.0001472,2]
[354052626,1740208244835,-500.0,0.0001472,2]
[354052627,1740208244845,-616.41,0.0001472,2]
[354052628,1740208244855,-2755.29,0.0001472,2]
[354052629,1740208244864,-396.0,0.00014722,2]
[354052630,1740208244873,-150.294,0.0001473,2]
[354052631,1740208244883,-1970.0,0.0001473,2]
[354052633,1740208244892,-538.0,0.0001473,2]
[354052635,1740208244902,-2288.0,0.0001473,2]
[354052637,1740208244911,-500.0,0.00014795,2]
[354052639,1740208244920,-50000.0,0.000148,2]
[354052641,1740208244930,-151.0,0.000148,2]
[354052643,1740208244939,-151.0,0.000148,2]
[354052645,1740208244949,-8025.91328175,0.000148,2]
[354052647,1740208244958,-151.0,0.000148,2]
[354052649,1740208244967,-16801.677325,0.000148,2]
[354052651,1740208244976,-1338.82,0.00014801,2]
[354052653,1740208244985,-739.71,0.00014801,2]
[354052655,1740208244995,-500.0,0.00014801,2]
[354052657,1740208245004,-500.0,0.00014801,2]
[354052659,1740208245014,-600.9,0.00014801,2]
[354052661,1740208245023,-1058.86,0.00014801,2]
[354052663,1740208245033,-744.55,0.00014801,2]
[354052665,1740208245042,-697.64,0.00014801,2]
[354052667,1740208245051,-500.0,0.00014801,2]
[354052669,1740208245061,-500.0,0.00014801,2]
[354052671,1740208245071,-570.58,0.00014801,2]
[354052673,1740208245080,-500.0,0.00014801,2]
[354052675,1740208245089,-580.93,0.00014801,2]
[354052677,1740208245099,-556.77,0.00014801,2]
[354052679,1740208245108,-553.37,0.00014801,2]
[354052681,1740208245117,-500.0,0.00014802,2]
[354052683,1740208245127,-4857.36,0.00014802,2]
[354052685,1740208245136,-2326.9,0.00014802,2]
[354052687,1740208245145,-500.0,0.00014802,2]
[354052689,1740208245155,-500.0,0.00014802,2]
[354052691,1740208245164,-249.59345556,0.00014802,2]
[354052693,1740208245173,-616.41,0.00014802,2]
[354052695,1740208245183,-2755.29,0.00014802,2]
[354052697,1740208245193,-611.4277588,0.00014848,2]
[354052699,1740208245202,-500.0,0.00014873,2]
[354052701,1740208245211,-500.0,0.00014873,2]
[354052703,1740208245220,-500.19031652,0.00014873,2]
[354052705,1740208245230,-500.0,0.00014884,2]
[354052707,1740208245239,-1338.82,0.00014884,2]
[354052709,1740208245248,-4857.36,0.00014884,2]
[354052711,1740208245257,-739.71,0.00014884,2]
[354052713,1740208245267,-500.0,0.00014884,2]
[354052715,1740208245276,-2326.9,0.00014884,2]
[354052717,1740208245286,-500.0,0.00014884,2]
[354052719,1740208245296,-500.0,0.00014884,2]
[354052721,1740208245306,-500.0,0.00014884,2]
[354052724,1740208245316,-600.9,0.00014884,2]
[354052726,1740208245326,-616.41,0.00014884,2]
[354052728,1740208245335,-1058.86,0.00014884,2]
[354052730,1740208245345,-744.55,0.00014884,2]
[354052732,1740208245355,-697.64,0.00014884,2]
[354052734,1740208245364,-2755.29,0.00014884,2]
[354052736,1740208245374,-500.0,0.00014884,2]
[354052738,1740208245383,-500.0,0.00014884,2]
[354052740,1740208245393,-500.0,0.00014884,2]
[354052742,1740208245402,-556.77,0.00014884,2]
[354052744,1740208245411,-553.37,0.00014884,2]
[354052746,1740208245420,-2159.56,0.000149,2]
[354052748,1740208245430,-300.0,0.000149,5]
[354052750,1740208245440,-742017.073611,0.000149,2]
[354052752,1740208245449,-1338.82,0.00014966,2]
[354052754,1740208245459,-739.71,0.00014966,2]
[354052756,1740208245469,-500.0,0.00014966,2]
[354052758,1740208245479,-500.0,0.00014966,2]
[354052760,1740208245490,-600.9,0.00014966,2]
[354052762,1740208245500,-1058.86,0.00014966,2]
[354052764,1740208245509,-744.55,0.00014966,2]
[354052766,1740208245519,-697.64,0.00014966,2]
[354052768,1740208245529,-500.0,0.00014966,2]
[354052770,1740208245541,-500.0,0.00014966,2]
[354052772,1740208245550,-500.0,0.00014966,2]
[354052774,1740208245559,-556.77,0.00014966,2]
[354052776,1740208245568,-553.37,0.00014966,2]
[354052778,1740208245577,-500.0,0.00014967,2]
[354052780,1740208245587,-4857.36,0.00014967,2]
[354052782,1740208245597,-2326.9,0.00014967,2]
[354052784,1740208245606,-156.33,0.00014967,2]
[354052786,1740208245616,-500.0,0.00014967,2]
[354052788,1740208245626,-616.41,0.00014967,2]
[354052790,1740208245635,-2755.29,0.00014967,2]
[354052792,1740208245645,-3000.0,0.00014995,2]
[354052794,1740208245654,-151.0,0.00015,2]
[354052796,1740208245664,-1000.0,0.00015,2]
[354052798,1740208245673,-1338.82,0.00015048,2]
[354052800,1740208245683,-739.71,0.00015048,2]
[354052802,1740208245694,-500.0,0.00015048,2]
[354052804,1740208245704,-500.0,0.00015048,2]
[354052806,1740208245713,-600.9,0.00015048,2]
[354052808,1740208245723,-1058.86,0.00015048,2]
[354052810,1740208245734,-744.55,0.00015048,2]
[354052812,1740208245746,-697.64,0.00015048,2]
[354052814,1740208245756,-204.11,0.00015048,2]
[354052816,1740208245766,-500.0,0.00015048,2]
[354052818,1740208245775,-500.0,0.00015048,2]
[354052821,1740208245786,-556.77,0.00015048,2]
[354052822,1740208245796,-553.37,0.00015048,2]
[354052824,1740208245805,-500.0,0.00015049,2]
[354052827,1740208245816,-4857.36,0.00015049,2]
[354052828,1740208245836,-2326.9,0.00015049,2]
[354052830,1740208245846,-638.70881698,0.00015049,2]
[354052832,1740208245856,-616.41,0.00015049,2]
[354052834,1740208245866,-2755.29,0.00015049,2]
[354052836,1740208245877,-1338.82,0.0001513,2]
[354052838,1740208245886,-739.71,0.0001513,2]
[354052840,1740208245895,-500.0,0.0001513,2]
[354052842,1740208245906,-500.0,0.0001513,2]
[354052844,1740208245915,-600.9,0.0001513,2]
[354052846,1740208245925,-1058.86,0.0001513,2]
[354052848,1740208245934,-744.55,0.0001513,2]
[354052849,1740208245943,-697.64,0.0001513,2]
[354052851,1740208245953,-456.22172046,0.0001513,2]
[354052853,1740208245963,-500.0,0.0001513,2]
[354052855,1740208245972,-556.77,0.0001513,2]
[354052865,1740208246046,-553.37,0.0001513,2]
[354052867,1740208246064,-386.1973136,0.00015131,2]
[354052869,1740208246074,-4857.36,0.00015131,2]
[354052871,1740208246083,-2326.9,0.00015131,2]
[354052873,1740208246093,-616.41,0.00015131,2]
[354052875,1740208246103,-2755.29,0.00015131,2]
[354052877,1740208246112,-151.0,0.00015167,2]
[354052879,1740208246122,-1338.82,0.00015212,2]
[354052881,1740208246131,-739.71,0.00015212,2]
[354052883,1740208246142,-500.0,0.00015212,2]
[354052885,1740208246152,-480.83511656,0.00015212,2]
[354052887,1740208246162,-600.9,0.00015212,2]
[354052889,1740208246172,-1058.86,0.00015212,2]
[354052891,1740208246182,-744.55,0.00015212,2]
[354052892,1740208246191,-697.64,0.00015212,2]
[354052893,1740208246201,-500.0,0.00015212,2]
[354052895,1740208246211,-556.77,0.00015212,2]
[354052897,1740208246220,-553.37,0.00015212,2]
[354052899,1740208246229,-4857.36,0.00015213,2]
[354052901,1740208246239,-2326.9,0.00015213,2]
[354052903,1740208246248,-616.41,0.00015213,2]
[354052905,1740208246257,-2755.29,0.00015213,2]
[354052907,1740208246267,-179.73040439,0.00015216,2]
[354052909,1740208246276,-713.25298366,0.00015239,2]
[354052911,1740208246286,-1338.82,0.00015295,2]
[354052913,1740208246295,-4857.36,0.00015295,2]
[354052915,1740208246304,-739.71,0.00015295,2]
[354052917,1740208246314,-500.0,0.00015295,2]
[354052919,1740208246323,-2326.9,0.00015295,2]
[354052921,1740208246332,-600.9,0.00015295,2]
[354052923,1740208246342,-616.41,0.00015295,2]
[354052925,1740208246351,-1058.86,0.00015295,2]
[354052927,1740208246362,-744.55,0.00015295,2]
[354052929,1740208246372,-697.64,0.00015295,2]
[354052931,1740208246382,-2755.29,0.00015295,2]
[354052933,1740208246393,-500.0,0.00015295,2]
[354052935,1740208246404,-556.77,0.00015295,2]
[354052937,1740208246415,-553.37,0.00015295,2]